bitfinex/quotes_BTCUSD_20251024
["timestamp","ask_amount","ask_price","bid_price","bid_amount"]
[1761279785825,0.180606,110740.0,110720.0,0.19869941]
[1761279786102,0.20777306,110750.0,110730.0,0.18061952]
[1761279786324,0.18063557,110750.0,110730.0,0.18061952]
[1761279788115,0.001,110740.0,110730.0,0.19868147]
[1761279788325,0.18063557,110750.0,110730.0,0.19868147]
[1761279788798,0.18163557,110750.0,110730.0,0.19868147]
[1761279790987,0.18060321,110740.0,110730.0,0.18061952]
[1761279791209,0.19896806,110740.0,110730.0,0.18061952]
[1761279791427,0.18060321,110740.0,110730.0,0.18061952]
[1761279795083,4.867e-05,110750.0,110730.0,0.27043853]
[1761279795288,4.867e-05,110750.0,110740.0,0.18060321]
[1761279795493,4.867e-05,110750.0,110740.0,0.52060321]
[1761279795620,4.867e-05,110750.0,110740.0,0.61042222]
[1761279796057,4.867e-05,110750.0,110740.0,0.94797399]
[1761279796277,4.867e-05,110750.0,110740.0,0.6375536]
[1761279797416,4.867e-05,110750.0,110740.0,0.7963536]
[1761279797830,4.867e-05,110750.0,110740.0,1.10677399]
[1761279798040,4.867e-05,110750.0,110740.0,0.7963536]
[1761279799900,4.867e-05,110750.0,110740.0,0.6375536]
[1761279807780,4.867e-05,110750.0,110740.0,0.94797399]
[1761279808745,0.01792167,110810.0,110800.0,0.18050541]
[1761279808930,0.0002,110820.0,110810.0,0.52048912]
[1761279809174,0.00068708,110820.0,110810.0,0.92072852]
[1761279809395,0.00068708,110820.0,110810.0,0.61030813]
[1761279809605,0.00068708,110820.0,110810.0,0.94783721]
[1761279809827,0.0002,110850.0,110830.0,0.52044321]
[1761279810029,0.00024869,110850.0,110840.0,0.19848429]
[1761279810237,0.00024869,110850.0,110840.0,0.19715958]
[1761279810641,0.00024869,110850.0,110840.0,0.22426814]
[1761279813209,0.00024869,110850.0,110840.0,0.22420154]
[1761279813413,0.0002,110860.0,110850.0,1.14126477]
[1761279813609,0.0002,110860.0,110850.0,0.9373161]
[1761279814286,1e-08,110860.0,110850.0,1.28391877]
[1761279814520,1e-08,110860.0,110850.0,1.24773649]
[1761279814712,0.00100001,110860.0,110850.0,1.28387169]
[1761279814919,1e-08,110860.0,110850.0,1.24768941]
[1761279815372,1e-08,110860.0,110850.0,0.62684863]
[1761279815550,1e-08,110860.0,110850.0,1.24768941]
[1761279816475,1e-08,110860.0,110850.0,1.25068941]
[1761279816704,1e-08,110860.0,110850.0,1.24968941]
[1761279816941,1e-08,110860.0,110850.0,1.25468941]
[1761279818232,1e-08,110860.0,110850.0,0.94426902]
[1761279818610,1e-08,110860.0,110850.0,0.94421443]
[1761279818953,1e-08,110860.0,110850.0,1.25463482]
[1761279820253,1e-08,110860.0,110850.0,0.63379404]
[1761279820500,1e-08,110860.0,110850.0,1.25463482]
[1761279824359,1e-08,110860.0,110850.0,1.28173414]
[1761279825362,1e-08,110860.0,110850.0,1.31791642]
[1761279826011,0.52031067,110920.0,110900.0,0.18034265]
[1761279826232,0.52045666,110920.0,110900.0,0.18034265]
[1761279827101,0.52947216,110920.0,110900.0,0.18034265]
[1761279827739,0.53047216,110920.0,110900.0,0.18034265]
[1761279829228,0.53951353,110920.0,110900.0,0.18034265]
[1761279831049,0.53951526,110920.0,110900.0,0.18034265]
[1761279831611,0.34114599,110920.0,110910.0,0.18032639]
[1761279832110,0.18145771,110920.0,110900.0,0.18034265]
[1761279832306,0.00114599,110920.0,110910.0,0.18032639]
[1761279832558,0.34114599,110920.0,110910.0,0.18032639]
[1761279832773,0.35918544,110920.0,110910.0,0.18032639]
[1761279832999,0.53849557,110920.0,110900.0,0.18034265]
[1761279833216,0.53949557,110920.0,110900.0,0.18034265]
[1761279834142,0.53849557,110920.0,110900.0,0.18034265]
[1761279834365,0.53949557,110920.0,110900.0,0.18034265]
[1761279834827,0.00114599,110920.0,110910.0,0.5976183]
[1761279835048,0.00114599,110920.0,110910.0,1.24563267]
[1761279835263,1e-08,110920.0,110910.0,1.24563267]
[1761279835920,1e-08,110920.0,110910.0,0.9361924]
[1761279836134,1e-08,110920.0,110910.0,1.28181495]
[1761279836335,0.004,110930.0,110920.0,0.18031013]
[1761279836538,0.004,110930.0,110920.0,1.08440742]
[1761279836741,0.004,110930.0,110920.0,0.83246216]
[1761279836944,0.004,110930.0,110920.0,0.44753587]
[1761279837145,0.004,110930.0,110920.0,0.47461946]
[1761279837571,0.004,110930.0,110920.0,0.31381946]
[1761279837779,0.004,110930.0,110920.0,0.28673587]
[1761279839395,0.004,110930.0,110920.0,0.28679027]
[1761279840592,0.004,110930.0,110920.0,0.63808098]
[1761279840995,0.004,110930.0,110920.0,0.66516413]
[1761279841839,0.004,110930.0,110920.0,0.82588413]
[1761279842089,0.004,110930.0,110920.0,0.85955971]
[1761279842360,0.004,110930.0,110920.0,1.19955971]
[1761279842585,1e-08,110940.0,110930.0,0.18029387]
[1761279842779,1e-08,110940.0,110930.0,1.06595196]
[1761279842987,1e-08,110940.0,110930.0,1.03830447]
[1761279843624,1e-08,110940.0,110930.0,1.10082664]
[1761279843830,1e-08,110940.0,110930.0,1.07186046]
[1761279844042,1e-08,110940.0,110930.0,1.03567818]
[1761279844252,1e-08,110940.0,110930.0,1.04790491]
[1761279844429,1e-08,110940.0,110930.0,1.01422933]
[1761279844866,1e-08,110940.0,110930.0,1.03818488]
[1761279845107,1e-08,110940.0,110930.0,0.72065862]
[1761279845317,1e-08,110940.0,110930.0,1.23266933]
[1761279846430,1e-08,110940.0,110930.0,0.62675634]
[1761279846666,1e-08,110940.0,110930.0,0.28675634]
[1761279848399,1e-08,110940.0,110930.0,0.01664346]
[1761279848400,0.18027763,110940.0,110930.0,0.01664346]
[1761279849039,0.18027763,110940.0,110920.0,0.18030714]
[1761279849262,0.18027763,110940.0,110920.0,0.19693243]
[1761279849912,1e-08,110940.0,110930.0,0.19832325]
[1761279850105,1e-08,110940.0,110930.0,0.30476755]
[1761279850308,1e-08,110940.0,110930.0,0.28673817]
[1761279852342,0.18027763,110940.0,110930.0,0.1064443]
[1761279852543,1e-08,110940.0,110930.0,0.28673817]
[1761279853596,0.18027763,110940.0,110930.0,0.28673817]
[1761279854149,0.18027763,110940.0,110930.0,0.1064443]
[1761279854352,0.18027763,110940.0,110930.0,0.28673817]
[1761279856253,0.18027763,110940.0,110930.0,0.1064443]
[1761279856831,0.18027763,110940.0,110930.0,0.28673817]
[1761279856989,0.18027763,110940.0,110930.0,0.1064443]
[1761279857197,0.18027763,110940.0,110930.0,0.01662529]
[1761279858224,0.18027763,110940.0,110930.0,0.19691916]
[1761279858225,1e-08,110940.0,110930.0,0.19691916]
[1761279858630,1e-08,110940.0,110930.0,0.28673817]
[1761279859833,0.18027763,110940.0,110930.0,0.1064443]
[1761279862076,0.18027763,110940.0,110930.0,0.28673817]
[1761279862683,0.18027763,110940.0,110930.0,0.01662529]
[1761279866026,0.18027763,110940.0,110920.0,0.18030917]
[1761279870355,0.18027763,110940.0,110930.0,0.01802938]
[1761279870566,0.18027763,110940.0,110930.0,0.18029387]
[1761279870567,1e-08,110940.0,110930.0,0.18029387]
[1761279870775,1e-08,110940.0,110930.0,0.28814226]
[1761279870978,1e-08,110940.0,110930.0,0.27011288]
[1761279871890,0.18027763,110940.0,110930.0,0.27011288]
[1761279875308,0.18027763,110940.0,110920.0,0.18030917]
[1761279875507,0.18027763,110940.0,110920.0,0.27012818]
[1761279877665,0.18027763,110940.0,110930.0,0.18029387]
[1761279878068,0.18027763,110940.0,110920.0,0.27012818]
[1761279879526,0.18027763,110940.0,110930.0,0.18029387]
[1761279880845,0.18027763,110940.0,110920.0,0.27012818]
[1761279881069,0.17541416,110950.0,110920.0,0.18030452]
[1761279881275,0.18027762,110940.0,110920.0,0.18030452]
[1761279884616,0.19654823,110940.0,110920.0,0.18030452]
[1761279886530,0.18027762,110940.0,110920.0,0.18030452]
[1761279893128,0.18029387,110930.0,110910.0,0.18032639]
[1761279893335,0.27911051,110940.0,110920.0,0.18030973]
[1761279893747,0.18029387,110930.0,110910.0,0.18032639]
[1761279894224,0.18029387,110930.0,110920.0,0.18031013]
[1761279894628,0.18029387,110930.0,110920.0,0.19834114]
[1761279895541,0.1892915,110940.0,110920.0,0.19834114]
[1761279895974,0.1892915,110940.0,110920.0,0.18031013]
[1761279896578,0.1892915,110940.0,110930.0,0.18029387]
[1761279896939,0.1892915,110940.0,110920.0,0.18031013]
[1761279897147,0.1892915,110940.0,110930.0,0.18029387]
[1761279897549,0.1892915,110940.0,110930.0,0.18021397]
[1761279898814,0.1892915,110940.0,110920.0,0.18031013]
[1761279908230,0.18029387,110930.0,110920.0,0.18031013]
[1761279909603,0.18031013,110920.0,110910.0,0.18032639]
[1761279910226,0.18031013,110920.0,110900.0,0.18935978]
[1761279910435,0.18032639,110910.0,110900.0,0.18950577]
[1761279910708,0.18032639,110910.0,110900.0,0.18048864]
[1761279910937,0.18032639,110910.0,110900.0,0.00014599]
[1761279911577,0.18032639,110910.0,110900.0,0.18048864]
[1761279911756,0.0182003,110920.0,110910.0,0.18032639]
[1761279912768,0.19851043,110920.0,110910.0,0.18032639]
[1761279913308,0.0182003,110920.0,110910.0,0.18032639]
[1761279913776,0.0182003,110920.0,110900.0,0.18048864]
[1761279914206,0.0182003,110920.0,110910.0,0.18032639]
[1761279914438,0.52029475,110930.0,110910.0,0.18032639]
[1761279914657,0.61011376,110930.0,110910.0,0.18032639]
[1761279916579,0.61011376,110930.0,110920.0,0.18031013]
[1761279917261,0.22178974,110940.0,110920.0,0.18031013]
[1761279917477,0.2726325,110950.0,110930.0,0.18029387]
[1761279917711,0.22175845,110960.0,110940.0,0.18027762]
[1761279917929,0.27907922,110960.0,110940.0,0.18027762]
[1761279918118,0.29513469,110960.0,110940.0,0.18027762]
[1761279918754,0.18026137,110950.0,110940.0,0.18027762]
[1761279919114,0.18026137,110950.0,110930.0,0.18029387]
[1761279919510,0.18027762,110940.0,110930.0,0.18029387]
[1761279919924,0.27909344,110950.0,110930.0,0.18029387]
[1761279920556,0.18027762,110940.0,110920.0,0.18031013]
[1761279920911,0.18029387,110930.0,110910.0,0.18032639]
[1761279921146,0.28521112,110950.0,110920.0,0.18031013]
[1761279921346,0.18027762,110940.0,110920.0,0.18031013]
[1761279921964,0.18029387,110930.0,110920.0,0.18031013]
[1761279922163,0.18029387,110930.0,110910.0,0.18032639]
[1761279923290,0.1892915,110940.0,110920.0,0.18031013]
[1761279923485,0.27911051,110940.0,110920.0,0.18031013]
[1761279923657,0.012,110930.0,110920.0,0.18031013]
[1761279924893,0.19229387,110930.0,110920.0,0.18031013]
[1761279928855,0.19229387,110930.0,110910.0,0.18032639]
[1761279930824,0.18031013,110920.0,110910.0,0.18032639]
[1761279934200,0.012,110930.0,110920.0,0.18031013]
[1761279934962,0.012,110930.0,110920.0,0.19834114]
[1761279938986,0.00646448,110930.0,110920.0,0.19834114]
[1761279942102,0.00646448,110930.0,110920.0,0.28816015]
[1761279942372,0.00646448,110930.0,110920.0,0.5793689]
[1761279942577,0.00646448,110930.0,110920.0,1.10317223]
[1761279942774,0.00646448,110930.0,110920.0,1.13025453]
[1761279946951,0.00646448,110930.0,110920.0,0.39116563]
[1761279947154,0.18675835,110930.0,110910.0,0.18032486]
[1761279947700,0.00646448,110930.0,110920.0,0.19834114]
[1761279948472,0.18675835,110930.0,110920.0,0.19834114]
[1761279948873,0.18675835,110930.0,110920.0,0.01803101]
[1761279949104,0.18675835,110930.0,110910.0,0.27014387]
[1761279949487,0.18675835,110930.0,110920.0,0.18031013]
[1761279949902,0.00646448,110930.0,110920.0,0.59739991]
[1761279950108,0.00646448,110930.0,110920.0,0.5793689]
[1761279950303,0.00646448,110930.0,110920.0,0.29721398]
[1761279954350,0.00646448,110930.0,110920.0,0.64853808]
[1761279955131,0.00646448,110930.0,110920.0,0.98853808]
[1761279959267,0.17854218,110970.0,110940.0,0.18027762]
[1761279959446,0.18028508,110960.0,110940.0,0.28812439]
[1761279959655,0.18028508,110960.0,110940.0,0.27009663]
[1761279960408,0.18028508,110960.0,110940.0,0.18027762]
[1761279960963,0.18929733,110960.0,110940.0,0.18027762]
[1761279962049,0.18929733,110960.0,110950.0,0.18026137]
[1761279962882,0.18929733,110960.0,110940.0,0.18027762]
[1761279963083,0.18026137,110950.0,110940.0,0.18027762]
[1761279964440,0.18929733,110960.0,110940.0,0.18027762]
[1761279966492,0.18026137,110950.0,110940.0,0.18027263]
[1761279967811,0.18026137,110950.0,110930.0,0.18028912]
[1761279968019,0.18963728,110960.0,110940.0,0.18027721]
[1761279969344,0.18963728,110960.0,110950.0,0.18026137]
[1761279970224,0.18963728,110960.0,110940.0,0.18027721]
[1761279972348,0.00033995,110960.0,110950.0,0.18026137]
[1761279972759,0.18058508,110960.0,110950.0,0.18026137]
[1761279975836,0.00033995,110960.0,110950.0,0.18026137]
[1761279979943,0.18058508,110960.0,110950.0,0.18026137]
[1761279980817,0.00033995,110960.0,110950.0,0.18026137]
[1761279981891,0.00033995,110960.0,110950.0,0.48939303]
[1761279982114,0.00033995,110960.0,110950.0,0.18026137]
[1761279982341,0.00033995,110960.0,110950.0,0.90636983]
[1761279982570,0.00033995,110960.0,110950.0,1.0481437]
[1761279983007,0.00033995,110960.0,110950.0,0.73901204]
[1761279983257,10.11787438,111000.0,110970.0,0.52022889]
[1761279983477,10.11796207,111000.0,110990.0,1.22827874]
[1761279983695,10.11932135,111000.0,110990.0,1.26040402]
[1761279983923,10.11932135,111000.0,110990.0,1.29346169]
[1761279984196,10.11932135,111000.0,110990.0,1.5384453]
[1761279984429,9.18947557,111000.0,110990.0,0.77389947]
[1761279984649,9.18947557,111000.0,110990.0,1.55819598]
[1761279984871,9.18947557,111000.0,110990.0,1.39805784]
[1761279985087,9.18947557,111000.0,110990.0,1.61605784]
[1761279985339,8.51075255,111000.0,110990.0,2.5325349]
[1761279985571,8.38913752,111000.0,110990.0,1.67720562]
[1761279985815,8.38913752,111000.0,110990.0,1.67713605]
[1761279986276,8.38913752,111000.0,110990.0,0.74974107]
[1761279986499,8.38913752,111000.0,110990.0,1.67713605]
[1761279987181,8.38913752,111000.0,110990.0,1.6412806]
[1761279987619,8.38913752,111000.0,110990.0,0.71388562]
[1761279987850,8.38913752,111000.0,110990.0,0.68997169]
[1761279987851,7.97914834,111000.0,110990.0,0.68997169]
[1761279988090,7.77837317,111000.0,110990.0,2.56867558]
[1761279988312,7.45228151,111000.0,110990.0,2.605733]
[1761279988523,7.2489529,111000.0,110990.0,2.5738016]
[1761279988736,7.09457538,111000.0,110990.0,0.71901164]
[1761279988961,7.01784479,111000.0,110990.0,1.42014016]
[1761279989391,6.48653814,111000.0,110990.0,1.60540784]
[1761279989615,6.37896299,111000.0,110990.0,1.60540784]
[1761279989819,6.14306995,111000.0,110990.0,1.67540784]
[1761279990039,6.03338643,111000.0,110990.0,1.67540784]
[1761279990212,5.86645538,111000.0,110990.0,1.67540784]
[1761279990415,5.77908745,111000.0,110990.0,1.67540784]
[1761279991272,5.77908745,111000.0,110990.0,1.82480784]
[1761279991688,5.08209369,111000.0,110990.0,1.82480784]
[1761279991889,4.20937488,111000.0,110990.0,1.84945273]
[1761279992086,4.08326167,111000.0,110990.0,1.84945273]
[1761279992315,3.81274504,111000.0,110990.0,1.87312125]
[1761279992515,3.66703366,111000.0,110990.0,1.87312125]
[1761279992694,3.51679873,111000.0,110990.0,1.87312125]
[1761279992896,3.34696798,111000.0,110990.0,1.84945273]
[1761279993105,3.15568597,111000.0,110990.0,1.84945273]
[1761279993308,2.91708998,111000.0,110990.0,1.83264369]
[1761279993510,2.80933794,111000.0,110990.0,1.83264369]
[1761279993661,2.65918064,111000.0,110990.0,1.83264369]
[1761279993869,2.54211222,111000.0,110990.0,1.79646141]
[1761279994065,2.14970263,111000.0,110990.0,1.83264369]
[1761279994275,1.68395808,111000.0,110990.0,1.48207943]
[1761279994494,1.13344969,111000.0,110990.0,1.87467321]
[1761279994705,1.1064178,111000.0,110990.0,1.87467321]
[1761279994926,1.07938591,111000.0,110990.0,1.87467321]
[1761279995126,0.3014246,111000.0,110990.0,1.89834173]
[1761279995321,0.025,111040.0,111030.0,0.18013149]
[1761279995526,0.02513144,111040.0,111030.0,1.15663828]
[1761279995747,0.02513144,111040.0,111030.0,1.16600663]
[1761279995955,0.02513144,111040.0,111030.0,1.19305291]
[1761279996364,0.02513144,111040.0,111030.0,1.16567142]
[1761279996568,0.02513144,111040.0,111030.0,1.19305291]
[1761279996770,0.02513144,111040.0,111030.0,1.51623568]
[1761279997387,0.02513144,111040.0,111030.0,1.3277894]
[1761279997723,0.02513144,111040.0,111030.0,0.97722514]
[1761279998038,0.02513144,111040.0,111030.0,1.01340742]
[1761279998479,0.02513144,111040.0,111030.0,0.97722514]
[1761279999101,0.02513144,111040.0,111030.0,1.36397168]
[1761280001052,0.02648999,111040.0,111030.0,1.36397168]
[1761280002805,0.02648999,111040.0,111030.0,1.01340742]
[1761280003782,0.02648999,111040.0,111030.0,1.07104742]
[1761280005259,0.02648999,111040.0,111030.0,1.09475987]
[1761280006082,0.02648999,111040.0,111030.0,0.7715771]
[1761280006311,0.0502,111050.0,111040.0,0.52011527]
[1761280006474,0.0502,111050.0,111040.0,1.32777318]
[1761280006822,0.0502,111050.0,111040.0,1.35515467]
[1761280007045,0.0502,111050.0,111040.0,1.00459041]
[1761280007465,0.0502,111050.0,111040.0,1.02830286]
[1761280007669,0.0502,111050.0,111040.0,1.02826286]
[1761280008634,0.0502,111050.0,111040.0,0.6776986]
[1761280008828,0.0502,111050.0,111040.0,0.65031711]
[1761280009010,0.0502,111050.0,111040.0,0.68649939]
[1761280010310,0.0502,111050.0,111040.0,0.69440354]
[1761280011398,0.0502,111050.0,111040.0,0.74287611]
[1761280011799,0.0502,111050.0,111040.0,0.89227611]
[1761280011999,0.05053954,111050.0,111040.0,0.74287611]
[1761280012202,0.05053954,111050.0,111040.0,0.71125951]
[1761280012386,0.05053954,111050.0,111040.0,0.66278694]
[1761280013032,0.05053954,111050.0,111040.0,0.69016843]
[1761280013462,0.05053954,111050.0,111040.0,0.72741704]
[1761280013670,0.05053954,111050.0,111040.0,0.75479853]
[1761280014499,0.05053954,111050.0,111040.0,0.72741704]
[1761280014671,0.05053954,111050.0,111040.0,0.66278694]
[1761280015183,0.05053954,111050.0,111040.0,0.72741704]
[1761280015649,0.05053954,111050.0,111040.0,0.75479853]
[1761280016146,1e-08,111050.0,111040.0,0.69016843]
[1761280016355,1e-08,111050.0,111040.0,0.77095606]
[1761280016583,1e-08,111060.0,111050.0,0.55628133]
[1761280016798,1e-08,111060.0,111050.0,0.75409805]
[1761280018977,1e-08,111060.0,111050.0,0.82195923]
[1761280020403,1e-08,111060.0,111050.0,0.75805339]
[1761280020518,1e-08,111060.0,111050.0,0.78200186]
[1761280020744,1e-08,111080.0,111070.0,0.6512289]
[1761280020955,0.13712758,111120.0,111110.0,0.5200018]
[1761280021183,0.13761342,111120.0,111110.0,0.65849203]
[1761280021757,0.13761342,111120.0,111110.0,0.65049497]
[1761280022216,0.13761342,111120.0,111110.0,0.47049317]
[1761280022417,0.13761342,111120.0,111110.0,0.62653119]
[1761280022761,0.13761342,111120.0,111110.0,0.44652939]
[1761280023529,0.13998863,111120.0,111110.0,0.10652939]
[1761280023996,0.13998863,111120.0,111110.0,0.28653119]
[1761280025017,0.13998863,111120.0,111110.0,0.10652939]
[1761280025878,0.13998863,111120.0,111110.0,0.28653119]
[1761280026665,0.13998863,111120.0,111110.0,0.26982081]
[1761280026872,0.13998863,111120.0,111110.0,0.28645244]
[1761280030248,0.13998863,111120.0,111110.0,0.31040815]
[1761280030610,0.13998863,111120.0,111110.0,0.28645244]
[1761280031423,0.13998863,111120.0,111110.0,0.26982081]
[1761280035458,0.13998863,111120.0,111110.0,0.08981901]
[1761280036745,0.13998863,111120.0,111090.0,0.02395132]
[1761280036957,0.53847044,111100.0,111080.0,0.02395132]
[1761280037167,0.76365461,111110.0,111080.0,0.08981901]
[1761280037365,0.22518417,111110.0,111080.0,0.08981901]
[1761280037596,0.03618228,111110.0,111080.0,0.10782405]
[1761280037772,0.04518237,111110.0,111080.0,0.10782405]
[1761280038126,0.18001824,111100.0,111080.0,0.08981901]
[1761280038434,0.18001809,111100.0,111080.0,0.08981901]
[1761280038634,0.22518517,111110.0,111080.0,0.08981901]
[1761280038972,0.18000206,111110.0,111090.0,0.08981901]
[1761280039613,122.95272196,111120.0,111090.0,0.08981901]
[1761280039970,0.18000202,111110.0,111090.0,0.08981901]
[1761280041725,0.18900211,111110.0,111070.0,0.71834485]
[1761280041909,0.18900211,111110.0,111080.0,0.08981901]
[1761280042116,0.00169689,111100.0,111080.0,0.08981901]
[1761280042316,0.18910724,111110.0,111080.0,0.62809745]
[1761280042542,0.00010513,111110.0,111080.0,0.62809745]
[1761280042702,0.03628741,111110.0,111080.0,0.62809745]
[1761280043300,122.626109,111120.0,111080.0,0.8081476]
[1761280043514,122.81509963,111120.0,111090.0,0.01800342]
[1761280043747,122.81509963,111120.0,111090.0,0.10782243]
[1761280044189,122.626109,111120.0,111100.0,0.62809745]
[1761280044600,122.626109,111120.0,111100.0,0.80811451]
[1761280045042,122.626109,111120.0,111100.0,0.26983607]
[1761280045179,122.626109,111120.0,111100.0,0.80811451]
[1761280045387,122.626109,111120.0,111110.0,0.1800018]
[1761280045586,122.626109,111120.0,111110.0,0.08981901]
[1761280046044,122.626109,111120.0,111090.0,0.18003281]
[1761280046269,122.626109,111120.0,111100.0,0.08981901]
[1761280047263,122.626109,111120.0,111100.0,0.10782081]
[1761280047901,122.626109,111120.0,111100.0,0.28783439]
[1761280048117,122.626109,111120.0,111100.0,0.26983259]
[1761280048272,0.00203608,111110.0,111100.0,0.08981901]
[1761280048479,0.00203608,111110.0,111100.0,0.10782081]
[1761280049120,0.00203608,111110.0,111100.0,0.08981901]
[1761280049675,0.00203608,111110.0,111080.0,1.09128243]
[1761280049884,122.81509435,111120.0,111090.0,0.08981901]
[1761280050091,122.89158077,111120.0,111090.0,0.08981901]
[1761280050487,0.1890025,111110.0,111070.0,0.20401773]
[1761280050691,0.1890025,111110.0,111080.0,0.08981901]
[1761280050935,0.00900009,111110.0,111080.0,0.64610249]
[1761280051134,0.18900303,111110.0,111080.0,0.62809745]
[1761280051626,0.18900303,111110.0,111080.0,0.08981901]
[1761280051802,0.18902082,111100.0,111060.0,0.20402711]
[1761280051951,0.18902082,111100.0,111070.0,0.10782567]
[1761280052151,0.18902082,111100.0,111070.0,0.08981901]
[1761280052381,0.18902082,111100.0,111070.0,0.15981901]
[1761280052581,0.23580511,111100.0,111070.0,0.15981901]
[1761280052786,0.18902082,111100.0,111070.0,0.15981901]
[1761280054344,0.72729926,111100.0,111070.0,0.15981901]
[1761280054542,0.7273147,111090.0,111050.0,0.2039962]
[1761280054696,0.18005045,111080.0,111060.0,0.08981901]
[1761280054906,0.18905297,111080.0,111040.0,0.77419502]
[1761280055107,0.18905297,111080.0,111050.0,0.42981901]
[1761280055530,0.18905297,111080.0,111050.0,0.08981901]
[1761280055939,0.18905297,111080.0,111050.0,0.09030485]
[1761280058466,0.00425501,111080.0,111050.0,0.09030485]
[1761280058661,0.00900171,111090.0,111050.0,0.82537241]
[1761280058901,0.18903772,111090.0,111050.0,0.80868042]
[1761280059092,0.18903772,111090.0,111060.0,0.01800828]
[1761280059290,0.18903772,111090.0,111060.0,0.10782729]
[1761280059661,0.18003601,111090.0,111060.0,0.64610573]
[1761280059864,0.18003601,111090.0,111060.0,0.08981901]
[1761280060091,0.18903772,111090.0,111060.0,0.64610573]
[1761280060445,0.18903772,111090.0,111060.0,0.62809745]
[1761280061322,0.18903772,111090.0,111060.0,0.08981901]
[1761280061523,0.00067894,111070.0,111060.0,0.10782729]
[1761280061775,0.00067894,111070.0,111060.0,0.64610573]
[1761280062091,0.00067894,111070.0,111060.0,0.62809745]
[1761280062963,0.00067894,111070.0,111060.0,0.08981901]
[1761280063178,0.00067894,111070.0,111060.0,0.10782729]
[1761280065801,0.18074556,111070.0,111050.0,0.00048584]
[1761280065936,0.18905315,111080.0,111050.0,0.09030485]
[1761280066147,0.18905315,111080.0,111050.0,0.10831475]
[1761280066758,0.18005063,111080.0,111050.0,0.10831475]
[1761280066954,0.18905315,111080.0,111050.0,0.10831475]
[1761280068233,0.18846791,111080.0,111050.0,0.10831475]
[1761280069192,0.18846791,111080.0,111050.0,0.28841333]
[1761280069394,0.18846791,111080.0,111050.0,0.09030485]
[1761280069594,0.18846791,111080.0,111050.0,0.10831475]
[1761280069595,0.17946539,111080.0,111050.0,0.10831475]
[1761280069966,0.17807673,111100.0,111060.0,0.62809745]
[1761280070178,0.34,111090.0,111060.0,0.62809745]
[1761280070302,0.52003442,111090.0,111060.0,0.80817872]
[1761280070490,0.52003442,111090.0,111060.0,0.08981901]
[1761280070897,0.52003442,111090.0,111060.0,0.10782729]
[1761280071509,0.58984554,111090.0,111060.0,0.10782729]
[1761280071724,0.00067894,111070.0,111060.0,0.08981901]
[1761280072955,0.00067894,111070.0,111050.0,0.18058363]
[1761280073109,0.00067894,111070.0,111050.0,0.27040264]
[1761280073282,0.18005121,111080.0,111050.0,0.27040264]
[1761280073498,0.18005121,111080.0,111050.0,0.09030485]
[1761280073938,0.18005121,111080.0,111050.0,0.27040324]
[1761280074732,0.18005121,111080.0,111050.0,0.6208971]
[1761280075312,0.21103771,111110.0,111070.0,0.5305602]
[1761280075507,0.30085672,111110.0,111070.0,0.53055958]
[1761280076347,0.27882289,111110.0,111080.0,0.35049386]
[1761280076555,122.626109,111120.0,111100.0,0.35049386]
[1761280076756,122.80609826,111120.0,111080.0,0.64430803]
[1761280076958,122.80609826,111120.0,111080.0,0.62035671]
[1761280077223,122.89591727,111120.0,111080.0,0.62035671]
[1761280077431,0.18900216,111110.0,111080.0,0.08981901]
[1761280077606,0.53949602,111110.0,111080.0,0.08981901]
[1761280077829,0.62931503,111110.0,111080.0,0.00048584]
[1761280078027,0.65082354,111110.0,111080.0,0.00048584]
[1761280078453,0.45179675,111110.0,111080.0,0.00048584]
[1761280078657,0.18001824,111100.0,111080.0,0.00048584]
[1761280078883,0.00135763,111090.0,111080.0,0.00048584]
[1761280079289,0.18139183,111090.0,111080.0,0.00048584]
[1761280079806,0.52139183,111090.0,111080.0,0.00048584]
[1761280081716,0.87188569,111090.0,111080.0,0.00048584]
[1761280081936,0.88859569,111090.0,111080.0,0.00048584]
[1761280082103,0.87188569,111090.0,111080.0,0.00048584]
[1761280082290,0.52139183,111090.0,111080.0,0.00048584]
[1761280082488,0.34135763,111090.0,111080.0,0.00048584]
[1761280082706,0.52139183,111090.0,111080.0,0.00048584]
[1761280082977,0.34135763,111090.0,111080.0,0.00048584]
[1761280088509,0.52139183,111090.0,111080.0,0.00048584]
[1761280095995,0.34135763,111090.0,111080.0,0.3509797]
[1761280096416,0.34135763,111090.0,111080.0,0.00048584]
[1761280099191,0.34135763,111090.0,111080.0,0.53103011]
[1761280099192,0.00135763,111090.0,111080.0,0.53103011]
[1761280099403,0.00135763,111090.0,111080.0,0.27035526]
[1761280099613,0.00135763,111090.0,111080.0,0.62084912]
[1761280099817,0.00135763,111090.0,111080.0,0.00048584]
[1761280100202,0.00135763,111090.0,111080.0,0.18053625]
[1761280100401,0.00135763,111090.0,111080.0,0.00048584]
[1761280100965,0.00135763,111090.0,111080.0,0.53103011]
[1761280102197,0.00135763,111090.0,111080.0,0.18053625]
[1761280102416,0.00129363,111090.0,111080.0,0.18053625]
[1761280102811,0.00129363,111090.0,111080.0,0.4888254]
[1761280104020,0.00129363,111090.0,111080.0,0.30877499]
[1761280105145,0.00129363,111090.0,111080.0,0.4888254]
[1761280105284,0.00129363,111090.0,111080.0,0.79711455]
[1761280107385,0.00129363,111090.0,111080.0,0.4888254]
[1761280108264,0.00129363,111090.0,111080.0,0.18053625]
[1761280108466,0.00129363,111090.0,111080.0,0.4888254]
[1761280108876,0.00129363,111090.0,111080.0,0.00048584]
[1761280109283,0.00129363,111090.0,111080.0,0.30877499]
[1761280110168,0.00129363,111090.0,111080.0,0.00048584]
[1761280110377,0.48961698,111090.0,111080.0,0.00048584]
[1761280112027,0.18132783,111090.0,111080.0,0.00048584]
[1761280113116,0.48961698,111090.0,111080.0,0.00048584]
[1761280113344,0.18132783,111090.0,111080.0,0.00048584]
[1761280121489,0.18132783,111090.0,111080.0,0.01720369]
[1761280122954,0.48961698,111090.0,111080.0,0.01720369]
[1761280124753,0.18132783,111090.0,111080.0,0.01720369]
[1761280125947,0.57943599,111090.0,111080.0,0.01720369]
[1761280131418,0.57943599,111090.0,111080.0,0.00048584]
[1761280131419,1.35372643,111090.0,111080.0,0.00048584]
[1761280132217,1.26390742,111090.0,111080.0,0.00048584]
[1761280133251,1.2638285,111090.0,111080.0,0.00048584]
[1761280134902,1.26426028,111090.0,111080.0,0.00048584]
[1761280135902,0.6472502,111090.0,111080.0,0.00048584]
[1761280136103,0.61106792,111090.0,111080.0,0.00048584]
[1761280136515,0.91957296,111090.0,111080.0,0.00048584]
[1761280138946,0.61106792,111090.0,111080.0,0.00048584]
[1761280139447,0.91957296,111090.0,111080.0,0.01722122]
[1761280141249,0.61106792,111090.0,111080.0,0.01722122]
[1761280141464,0.91957296,111090.0,111080.0,0.01722122]
[1761280142142,0.91957296,111090.0,111080.0,0.01720131]
[1761280144048,0.61106792,111090.0,111080.0,0.01720131]
[1761280144191,0.91957296,111090.0,111080.0,0.01720131]
[1761280145534,0.91957296,111090.0,111080.0,0.01719903]
[1761280145711,0.91957296,111090.0,111080.0,0.01719881]